[Event "Titled Tuesday Blitz February 28 Early 2023"]
[White "Wagner, Dennis"]
[Black "Valgmae, Toomas"]
[WhiteFideId "24650684"]
[BlackFideId "4502523"]
[WhiteElo "2470"]
[BlackElo "2170"]
[Result "1/2-1/2"]
[Round "05"]
[TimeControl "180+2"]
[Date "2023.02.28"]
[WhiteClock "0:00:04"]
[BlackClock "0:00:07"]

1. d4 {[%clk 0:03:00]}  d5 {[%clk 0:03:00]} 2. Nf3 {[%clk 0:03:01]}  Nf6 {[%clk 0:03:00]} 3. c4 {[%clk 0:03:01]}  c6 {[%clk 0:03:00]} 4. Nbd2 {[%clk 0:02:59]}  Bg4 {[%clk 0:02:59]} 5. h3 {[%clk 0:02:59]}  Bh5 {[%clk 0:02:59]} 6. Nh4 {[%clk 0:02:57]}  e6 {[%clk 0:02:57]} 7. g4 {[%clk 0:02:57]}  Bg6 {[%clk 0:02:57]} 8. Nxg6 {[%clk 0:02:56]}  hxg6 {[%clk 0:02:58]} 9. Bg2 {[%clk 0:02:56]}  Nbd7 {[%clk 0:02:57]} 10. Qb3 {[%clk 0:02:42]}  Qb6 {[%clk 0:02:56]} 11. Qc2 {[%clk 0:02:30]}  Be7 {[%clk 0:02:51]} 12. e3 {[%clk 0:02:27]}  O-O-O {[%clk 0:02:39]} 13. cxd5 {[%clk 0:02:24]}  exd5 {[%clk 0:02:32]} 14. O-O {[%clk 0:02:21]}  Kb8 {[%clk 0:02:31]} 15. Rb1 {[%clk 0:02:20]}  Qc7 {[%clk 0:02:25]} 16. Nf3 {[%clk 0:02:17]}  Ne4 {[%clk 0:02:21]} 17. b4 {[%clk 0:02:14]}  f5 {[%clk 0:02:20]} 18. gxf5 {[%clk 0:02:13]}  gxf5 {[%clk 0:02:20]} 19. b5 {[%clk 0:02:11]}  Rc8 {[%clk 0:02:09]} 20. Bd2 {[%clk 0:01:38]}  g5 {[%clk 0:02:01]} 21. bxc6 {[%clk 0:01:00]}  Qxc6 {[%clk 0:02:02]} 22. Qb3 {[%clk 0:00:46]}  Nb6 {[%clk 0:01:43]} 23. Rfc1 {[%clk 0:00:45]}  Qe6 {[%clk 0:01:33]} 24. Ba5 {[%clk 0:00:31]}  Rxc1+ {[%clk 0:01:14]} 25. Rxc1 {[%clk 0:00:32]}  Nc4 {[%clk 0:01:14]} 26. Bb4 {[%clk 0:00:32]}  g4 {[%clk 0:01:04]} 27. hxg4 {[%clk 0:00:32]}  fxg4 {[%clk 0:01:03]} 28. Ne5 {[%clk 0:00:32]}  Bxb4 {[%clk 0:00:52]} 29. Nxc4 {[%clk 0:00:14]}  dxc4 {[%clk 0:00:38]} 30. Qxb4 {[%clk 0:00:14]}  g3 {[%clk 0:00:21]} 31. fxg3 {[%clk 0:00:10]}  Nd6 {[%clk 0:00:16]} 32. Re1 {[%clk 0:00:08]}  Rc8 {[%clk 0:00:13]} 33. Qc3 {[%clk 0:00:07]}  Ne4 {[%clk 0:00:12]} 34. Qc2 {[%clk 0:00:06]}  Nxg3 {[%clk 0:00:11]} 35. Qf2 {[%clk 0:00:05]}  Ne4 {[%clk 0:00:10]} 36. Qf4+ {[%clk 0:00:06]}  Ka8 {[%clk 0:00:09]} 37. Qxe4 {[%clk 0:00:06]}  Qd7 {[%clk 0:00:09]} 38. Rb1 {[%clk 0:00:06]}  Rb8 {[%clk 0:00:07]} 39. Qd5 {[%clk 0:00:06]}  Qc7 {[%clk 0:00:07]} 40. e4 {[%clk 0:00:04]}  c3 {[%clk 0:00:07]} 41. e5 {[%clk 0:00:05]}  c2 {[%clk 0:00:07]} 42. Rc1 {[%clk 0:00:05]}  Qc3 {[%clk 0:00:08]} 43. Qf3 {[%clk 0:00:05]}  Qd2 {[%clk 0:00:07]} 44. Qf1 {[%clk 0:00:04]}  Qxd4+ {[%clk 0:00:07]} 45. Qf2 {[%clk 0:00:04]}  Qd1+ {[%clk 0:00:07]} 46. Qf1 {[%clk 0:00:03]}  Qd4+ {[%clk 0:00:07]} 47. Qf2 {[%clk 0:00:03]}  Qd1+ {[%clk 0:00:07]} 48. Qf1 {[%clk 0:00:04]}  Qd4+ {[%clk 0:00:07]} 1/2-1/2


[Site "https://www.chess.com"]

[Event "Titled Tuesday Blitz February 28 Early 2023"]
[White "Vivas Zamora, Fabian Ernesto"]
[Black "Srihari L R"]
[WhiteFideId "3902480"]
[BlackFideId "46617116"]
[WhiteElo "2262"]
[BlackElo "2334"]
[Result "0-1"]
[Round "05"]
[TimeControl "180+2"]
[Date "2023.02.28"]
[WhiteClock "0:00:01"]
[BlackClock "0:00:03"]

1. e4 {[%clk 0:02:58]}  d6 {[%clk 0:02:54]} 2. d4 {[%clk 0:02:57]}  Nf6 {[%clk 0:02:46]} 3. Nc3 {[%clk 0:02:57]}  e5 {[%clk 0:02:47]} 4. Nge2 {[%clk 0:02:56]}  exd4 {[%clk 0:02:47]} 5. Nxd4 {[%clk 0:02:57]}  Be7 {[%clk 0:02:47]} 6. Be3 {[%clk 0:02:56]}  O-O {[%clk 0:02:48]} 7. Qd2 {[%clk 0:02:55]}  d5 {[%clk 0:02:44]} 8. O-O-O {[%clk 0:02:50]}  c5 {[%clk 0:02:42]} 9. Ndb5 {[%clk 0:01:46]}  d4 {[%clk 0:02:41]} 10. Bf4 {[%clk 0:01:11]}  dxc3 {[%clk 0:02:17]} 11. Qxc3 {[%clk 0:01:11]}  Nbd7 {[%clk 0:02:06]} 12. Bc7 {[%clk 0:00:46]}  Qe8 {[%clk 0:02:03]} 13. f3 {[%clk 0:00:46]}  Nb6 {[%clk 0:01:32]} 14. Bxb6 {[%clk 0:00:30]}  axb6 {[%clk 0:01:30]} 15. Nc7 {[%clk 0:00:31]}  Qa4 {[%clk 0:01:17]} 16. Nxa8 {[%clk 0:00:25]}  Qxa8 {[%clk 0:00:59]} 17. a3 {[%clk 0:00:24]}  Be6 {[%clk 0:00:54]} 18. Bc4 {[%clk 0:00:18]}  Qc8 {[%clk 0:00:53]} 19. g4 {[%clk 0:00:16]}  Nd7 {[%clk 0:00:48]} 20. Bxe6 {[%clk 0:00:15]}  fxe6 {[%clk 0:00:48]} 21. h4 {[%clk 0:00:13]}  Bf6 {[%clk 0:00:45]} 22. Qc4 {[%clk 0:00:13]}  Ne5 {[%clk 0:00:45]} 23. Qe2 {[%clk 0:00:11]}  Nxf3 {[%clk 0:00:45]} 24. g5 {[%clk 0:00:06]}  Nd4 {[%clk 0:00:44]} 25. Qc4 {[%clk 0:00:04]}  Be5 {[%clk 0:00:42]} 26. Rhf1 {[%clk 0:00:04]}  b5 {[%clk 0:00:40]} 27. Qd3 {[%clk 0:00:04]}  Qe8 {[%clk 0:00:28]} 28. c3 {[%clk 0:00:03]}  c4 {[%clk 0:00:22]} 29. Qe3 {[%clk 0:00:01]}  Nc6 {[%clk 0:00:20]} 30. Kb1 {[%clk 0:00:01]}  Rxf1 {[%clk 0:00:16]} 31. Rxf1 {[%clk 0:00:01]}  Qd7 {[%clk 0:00:17]} 32. Qb6 {[%clk 0:00:01]}  Ne7 {[%clk 0:00:14]} 33. Ka2 {[%clk 0:00:02]}  h6 {[%clk 0:00:10]} 34. Qa7 {[%clk 0:00:02]}  hxg5 {[%clk 0:00:10]} 35. hxg5 {[%clk 0:00:02]}  Kh7 {[%clk 0:00:11]} 36. Qb6 {[%clk 0:00:02]}  Bxc3 {[%clk 0:00:06]} 37. bxc3 {[%clk 0:00:02]}  Qd2+ {[%clk 0:00:05]} 38. Ka1 {[%clk 0:00:02]}  Qxc3+ {[%clk 0:00:06]} 39. Ka2 {[%clk 0:00:02]}  Qb3+ {[%clk 0:00:06]} 40. Ka1 {[%clk 0:00:02]}  Qxa3+ {[%clk 0:00:07]} 41. Kb1 {[%clk 0:00:03]}  Qd3+ {[%clk 0:00:07]} 42. Ka2 {[%clk 0:00:02]}  Qxf1 {[%clk 0:00:08]} 43. Qxe6 {[%clk 0:00:02]}  Qf2+ {[%clk 0:00:08]} 44. Ka3 {[%clk 0:00:02]}  Qg3+ {[%clk 0:00:08]} 45. Kb4 {[%clk 0:00:02]}  Qxg5 {[%clk 0:00:09]} 46. Qh3+ {[%clk 0:00:01]}  Qh6 {[%clk 0:00:08]} 47. Qd7 {[%clk 0:00:02]}  Nc6+ {[%clk 0:00:07]} 48. Kxb5 {[%clk 0:00:01]}  Qg5+ {[%clk 0:00:06]} 49. Kb6 {[%clk 0:00:01]}  c3 {[%clk 0:00:06]} 50. Qh3+ {[%clk 0:00:01]}  Qh6 {[%clk 0:00:06]} 51. Qxc3 {[%clk 0:00:02]}  Qe6 {[%clk 0:00:04]} 52. Kc7 {[%clk 0:00:01]}  Qxe4 {[%clk 0:00:03]} 0-1


[Site "https://www.chess.com"]

[Event "Titled Tuesday Blitz February 28 Early 2023"]
[White "Nazari, Arad"]
[Black "Mohammed, Dilshad"]
[WhiteFideId "12577324"]
[BlackFideId "5050421"]
[WhiteElo "2242"]
[BlackElo "2102"]
[Result "1-0"]
[Round "05"]
[TimeControl "180+2"]
[Date "2023.02.28"]
[WhiteClock "0:00:24"]
[BlackClock "0:00:08"]

1. e4 {[%clk 0:02:59]}  e5 {[%clk 0:02:59]} 2. f4 {[%clk 0:02:59]}  exf4 {[%clk 0:02:59]} 3. Nf3 {[%clk 0:03:00]}  d5 {[%clk 0:02:59]} 4. exd5 {[%clk 0:03:00]}  Bd6 {[%clk 0:03:00]} 5. Nc3 {[%clk 0:02:37]}  Ne7 {[%clk 0:03:01]} 6. d4 {[%clk 0:02:36]}  Ng6 {[%clk 0:03:00]} 7. Bd3 {[%clk 0:02:35]}  O-O {[%clk 0:03:00]} 8. O-O {[%clk 0:02:35]}  Bg4 {[%clk 0:03:00]} 9. Ne2 {[%clk 0:02:26]}  Nd7 {[%clk 0:02:47]} 10. h3 {[%clk 0:02:18]}  Bh5 {[%clk 0:02:46]} 11. c4 {[%clk 0:02:13]}  b6 {[%clk 0:02:44]} 12. Qc2 {[%clk 0:02:04]}  Bxf3 {[%clk 0:02:39]} 13. Rxf3 {[%clk 0:02:04]}  Nh4 {[%clk 0:02:39]} 14. Rxf4 {[%clk 0:01:51]}  Bxf4 {[%clk 0:02:37]} 15. Bxf4 {[%clk 0:01:52]}  Ng6 {[%clk 0:02:35]} 16. Bg3 {[%clk 0:01:48]}  Nf6 {[%clk 0:02:35]} 17. Rf1 {[%clk 0:01:43]}  Nh5 {[%clk 0:02:28]} 18. Bh2 {[%clk 0:01:38]}  Qg5 {[%clk 0:02:26]} 19. Qc1 {[%clk 0:01:28]}  Qxc1 {[%clk 0:02:21]} 20. Rxc1 {[%clk 0:01:26]}  Rac8 {[%clk 0:02:03]} 21. Bf5 {[%clk 0:01:16]}  Rce8 {[%clk 0:02:03]} 22. Kf2 {[%clk 0:01:15]}  Nh4 {[%clk 0:01:42]} 23. Bd3 {[%clk 0:01:05]}  Re7 {[%clk 0:01:15]} 24. d6 {[%clk 0:01:02]}  cxd6 {[%clk 0:01:14]} 25. Bxd6 {[%clk 0:01:02]}  Rfe8 {[%clk 0:01:15]} 26. Bxe7 {[%clk 0:01:02]}  Rxe7 {[%clk 0:01:16]} 27. d5 {[%clk 0:00:57]}  Ng6 {[%clk 0:01:08]} 28. Bxg6 {[%clk 0:00:53]}  hxg6 {[%clk 0:01:07]} 29. b4 {[%clk 0:00:53]}  Rd7 {[%clk 0:01:04]} 30. Ke3 {[%clk 0:00:50]}  b5 {[%clk 0:00:56]} 31. c5 {[%clk 0:00:38]}  Rxd5 {[%clk 0:00:56]} 32. c6 {[%clk 0:00:39]}  Rd8 {[%clk 0:00:45]} 33. Nc3 {[%clk 0:00:33]}  Nf6 {[%clk 0:00:38]} 34. c7 {[%clk 0:00:22]}  Rc8 {[%clk 0:00:20]} 35. Nxb5 {[%clk 0:00:22]}  a6 {[%clk 0:00:18]} 36. Rd1 {[%clk 0:00:23]}  Re8+ {[%clk 0:00:09]} 37. Kf3 {[%clk 0:00:23]}  axb5 {[%clk 0:00:08]} 38. Rd8 {[%clk 0:00:24]} 1-0


[Site "https://www.chess.com"]

[Event "Titled Tuesday Blitz February 28 Early 2023"]
[White "Rottenwohrer Suarez, Juan"]
[Black "Dehtiarov, Roman"]
[WhiteFideId "32068182"]
[BlackFideId "14186640"]
[WhiteElo "2174"]
[BlackElo "2162"]
[Result "0-1"]
[Round "05"]
[TimeControl "180+2"]
[Date "2023.02.28"]
[WhiteClock "0:00:01"]
[BlackClock "0:00:11"]

1. e4 {[%clk 0:03:00]}  e5 {[%clk 0:02:53]} 2. Nf3 {[%clk 0:03:00]}  Nc6 {[%clk 0:02:52]} 3. Bb5 {[%clk 0:02:59]}  a6 {[%clk 0:02:51]} 4. Ba4 {[%clk 0:02:59]}  Nf6 {[%clk 0:02:51]} 5. O-O {[%clk 0:03:00]}  Be7 {[%clk 0:02:48]} 6. d3 {[%clk 0:02:52]}  b5 {[%clk 0:02:46]} 7. Bb3 {[%clk 0:02:52]}  d6 {[%clk 0:02:46]} 8. a4 {[%clk 0:02:47]}  b4 {[%clk 0:02:46]} 9. a5 {[%clk 0:02:42]}  O-O {[%clk 0:02:45]} 10. h3 {[%clk 0:02:42]}  Be6 {[%clk 0:02:44]} 11. Nbd2 {[%clk 0:02:38]}  Bxb3 {[%clk 0:02:42]} 12. Nxb3 {[%clk 0:02:38]}  Nb8 {[%clk 0:02:42]} 13. d4 {[%clk 0:02:33]}  Nbd7 {[%clk 0:02:42]} 14. Re1 {[%clk 0:02:30]}  c5 {[%clk 0:02:42]} 15. dxe5 {[%clk 0:02:22]}  dxe5 {[%clk 0:02:42]} 16. Nbd2 {[%clk 0:02:22]}  Qc7 {[%clk 0:02:36]} 17. Nc4 {[%clk 0:02:22]}  Rad8 {[%clk 0:02:35]} 18. Qe2 {[%clk 0:02:21]}  Rfe8 {[%clk 0:02:35]} 19. Bg5 {[%clk 0:02:20]}  h6 {[%clk 0:02:35]} 20. Bh4 {[%clk 0:02:16]}  Nh5 {[%clk 0:02:33]} 21. Bxe7 {[%clk 0:02:14]}  Rxe7 {[%clk 0:02:34]} 22. g3 {[%clk 0:01:59]}  Nb8 {[%clk 0:02:05]} 23. Rad1 {[%clk 0:01:46]}  Nc6 {[%clk 0:02:05]} 24. Rxd8+ {[%clk 0:01:44]}  Qxd8 {[%clk 0:02:06]} 25. Rd1 {[%clk 0:01:30]}  Qc7 {[%clk 0:02:04]} 26. Rd5 {[%clk 0:01:29]}  Nxa5 {[%clk 0:01:26]} 27. Nxa5 {[%clk 0:01:15]}  Qxa5 {[%clk 0:01:27]} 28. Rxe5 {[%clk 0:01:16]}  Rxe5 {[%clk 0:01:19]} 29. Nxe5 {[%clk 0:01:16]}  Nf6 {[%clk 0:01:19]} 30. Nc4 {[%clk 0:01:15]}  Qc7 {[%clk 0:01:10]} 31. e5 {[%clk 0:01:10]}  Qe7 {[%clk 0:00:49]} 32. Qf3 {[%clk 0:01:03]}  Nd7 {[%clk 0:00:47]} 33. Qa8+ {[%clk 0:00:47]}  Kh7 {[%clk 0:00:47]} 34. Qe4+ {[%clk 0:00:48]}  g6 {[%clk 0:00:45]} 35. h4 {[%clk 0:00:46]}  h5 {[%clk 0:00:44]} 36. b3 {[%clk 0:00:46]}  Qe6 {[%clk 0:00:42]} 37. Qb7 {[%clk 0:00:39]}  Kg7 {[%clk 0:00:39]} 38. Qe4 {[%clk 0:00:34]}  Kh7 {[%clk 0:00:33]} 39. Kg2 {[%clk 0:00:31]}  Nf6 {[%clk 0:00:31]} 40. Qb7 {[%clk 0:00:21]}  Ng4 {[%clk 0:00:25]} 41. Qe4 {[%clk 0:00:12]}  Nf6 {[%clk 0:00:18]} 42. Qb7 {[%clk 0:00:10]}  Ng4 {[%clk 0:00:14]} 43. Qe4 {[%clk 0:00:06]}  Kg7 {[%clk 0:00:14]} 44. f3 {[%clk 0:00:04]}  Nh6 {[%clk 0:00:14]} 45. Ne3 {[%clk 0:00:03]}  Ng8 {[%clk 0:00:11]} 46. f4 {[%clk 0:00:04]}  Ne7 {[%clk 0:00:12]} 47. Qc4 {[%clk 0:00:04]}  Nf5 {[%clk 0:00:10]} 48. Nxf5+ {[%clk 0:00:01]}  Qxf5 {[%clk 0:00:11]} 49. Qxc5 {[%clk 0:00:01]}  Qe4+ {[%clk 0:00:11]} 50. Kf2 {[%clk 0:00:02]}  a5 {[%clk 0:00:10]} 51. Qb6 {[%clk 0:00:02]}  Qxc2+ {[%clk 0:00:10]} 52. Kg1 {[%clk 0:00:02]}  Qb1+ {[%clk 0:00:10]} 53. Kg2 {[%clk 0:00:03]}  Qc2+ {[%clk 0:00:10]} 54. Kh3 {[%clk 0:00:03]}  Qd1 {[%clk 0:00:11]} 55. Qf6+ {[%clk 0:00:02]}  Kg8 {[%clk 0:00:11]} 56. Kh2 {[%clk 0:00:03]}  Qxb3 {[%clk 0:00:11]} 57. Qd8+ {[%clk 0:00:01]}  Kh7 {[%clk 0:00:11]} 58. Qxa5 {[%clk 0:00:02]}  Qc2+ {[%clk 0:00:11]} 59. Kh3 {[%clk 0:00:02]}  b3 {[%clk 0:00:11]} 60. Qa7 {[%clk 0:00:01]}  Qf5+ {[%clk 0:00:11]} 0-1


[Site "https://www.chess.com"]

[Event "Titled Tuesday Blitz February 28 Early 2023"]
[White "Rosen, Eric"]
[Black "Bas Mas, Jose Joaquin"]
[WhiteFideId "2032562"]
[BlackFideId "22219064"]
[WhiteElo "2359"]
[BlackElo "2233"]
[Result "1-0"]
[Round "05"]
[TimeControl "180+2"]
[Date "2023.02.28"]
[WhiteClock "0:00:10"]
[BlackClock "0:00:02"]

1. e4 {[%clk 0:03:00]}  e6 {[%clk 0:03:00]} 2. d4 {[%clk 0:02:48]}  d5 {[%clk 0:02:59]} 3. e5 {[%clk 0:02:49]}  c5 {[%clk 0:02:58]} 4. c3 {[%clk 0:02:49]}  Nc6 {[%clk 0:02:59]} 5. Nf3 {[%clk 0:02:50]}  Qb6 {[%clk 0:02:59]} 6. Bd3 {[%clk 0:02:50]}  Bd7 {[%clk 0:02:58]} 7. O-O {[%clk 0:02:50]}  cxd4 {[%clk 0:02:59]} 8. Re1 {[%clk 0:02:50]}  Nge7 {[%clk 0:02:55]} 9. h4 {[%clk 0:02:46]}  h6 {[%clk 0:02:55]} 10. a3 {[%clk 0:02:44]}  dxc3 {[%clk 0:02:45]} 11. Nxc3 {[%clk 0:02:44]}  Rc8 {[%clk 0:02:46]} 12. Nb5 {[%clk 0:02:27]}  Nxe5 {[%clk 0:02:23]} 13. Be3 {[%clk 0:02:12]}  Nxf3+ {[%clk 0:02:02]} 14. Qxf3 {[%clk 0:02:10]}  Qxb5 {[%clk 0:02:02]} 15. Bxb5 {[%clk 0:02:08]}  Bxb5 {[%clk 0:02:03]} 16. Bxa7 {[%clk 0:02:02]}  g5 {[%clk 0:01:24]} 17. Bd4 {[%clk 0:01:56]}  Rg8 {[%clk 0:01:23]} 18. h5 {[%clk 0:01:56]}  Bc6 {[%clk 0:01:08]} 19. Qd3 {[%clk 0:01:52]}  g4 {[%clk 0:01:05]} 20. b4 {[%clk 0:01:46]}  Rg5 {[%clk 0:00:57]} 21. b5 {[%clk 0:01:45]}  Bd7 {[%clk 0:00:57]} 22. a4 {[%clk 0:01:32]}  g3 {[%clk 0:00:44]} 23. fxg3 {[%clk 0:01:27]}  Nf5 {[%clk 0:00:45]} 24. Bf6 {[%clk 0:01:24]}  Bc5+ {[%clk 0:00:42]} 25. Kh2 {[%clk 0:01:16]}  Rxh5+ {[%clk 0:00:40]} 26. Bh4 {[%clk 0:01:17]}  Nxh4 {[%clk 0:00:38]} 27. gxh4 {[%clk 0:01:18]}  Rxh4+ {[%clk 0:00:32]} 28. Kg3 {[%clk 0:01:18]}  Rh5 {[%clk 0:00:33]} 29. Qh7 {[%clk 0:01:03]}  Ke7 {[%clk 0:00:20]} 30. Kf3 {[%clk 0:01:01]}  Rg5 {[%clk 0:00:18]} 31. Rac1 {[%clk 0:00:47]}  Rg6 {[%clk 0:00:12]} 32. g4 {[%clk 0:00:26]}  b6 {[%clk 0:00:12]} 33. Rf1 {[%clk 0:00:15]}  Rcg8 {[%clk 0:00:12]} 34. Ke2 {[%clk 0:00:16]}  R8g7 {[%clk 0:00:12]} 35. Qh8 {[%clk 0:00:16]}  Rxg4 {[%clk 0:00:12]} 36. Qxh6 {[%clk 0:00:08]}  Rg2+ {[%clk 0:00:11]} 37. Kd1 {[%clk 0:00:08]}  e5 {[%clk 0:00:06]} 38. Qf6+ {[%clk 0:00:09]}  Ke8 {[%clk 0:00:04]} 39. Rc2 {[%clk 0:00:09]}  Bg4+ {[%clk 0:00:03]} 40. Kc1 {[%clk 0:00:09]}  Ba3+ {[%clk 0:00:02]} 41. Kb1 {[%clk 0:00:10]}  Rxc2 {[%clk 0:00:02]} 42. Kxc2 {[%clk 0:00:10]} 1-0


[Site "https://www.chess.com"]

[Event "Titled Tuesday Blitz February 28 Early 2023"]
[White "Wahedi, Ahmad Siar"]
[Black "Gauri, Shankar"]
[WhiteFideId "4651260"]
[BlackFideId "5041350"]
[WhiteElo "2448"]
[BlackElo "2240"]
[Result "1-0"]
[Round "05"]
[TimeControl "180+2"]
[Date "2023.02.28"]
[WhiteClock "0:00:58"]
[BlackClock "0:00:03"]

1. e4 {[%clk 0:03:00]}  c6 {[%clk 0:02:53]} 2. d4 {[%clk 0:02:59]}  d5 {[%clk 0:02:53]} 3. e5 {[%clk 0:03:00]}  Bf5 {[%clk 0:02:53]} 4. h4 {[%clk 0:03:00]}  a6 {[%clk 0:02:52]} 5. h5 {[%clk 0:02:57]}  h6 {[%clk 0:02:51]} 6. g4 {[%clk 0:02:56]}  Bd7 {[%clk 0:02:51]} 7. Nc3 {[%clk 0:02:54]}  e6 {[%clk 0:02:50]} 8. Be3 {[%clk 0:02:51]}  Qc7 {[%clk 0:02:44]} 9. f4 {[%clk 0:02:45]}  c5 {[%clk 0:02:44]} 10. Nce2 {[%clk 0:02:44]}  cxd4 {[%clk 0:02:44]} 11. Nxd4 {[%clk 0:02:44]}  Nc6 {[%clk 0:02:43]} 12. c3 {[%clk 0:02:44]}  Nge7 {[%clk 0:02:29]} 13. Ngf3 {[%clk 0:02:42]}  Nxd4 {[%clk 0:02:28]} 14. Nxd4 {[%clk 0:02:42]}  Nc6 {[%clk 0:02:27]} 15. Qd2 {[%clk 0:02:41]}  Nxd4 {[%clk 0:02:22]} 16. Bxd4 {[%clk 0:02:41]}  Bc5 {[%clk 0:02:18]} 17. Rh2 {[%clk 0:02:28]}  Bxd4 {[%clk 0:02:09]} 18. Qxd4 {[%clk 0:02:28]}  Rc8 {[%clk 0:02:03]} 19. Rd1 {[%clk 0:02:26]}  Qc5 {[%clk 0:02:01]} 20. Qxc5 {[%clk 0:02:21]}  Rxc5 {[%clk 0:02:01]} 21. Rd4 {[%clk 0:02:21]}  Bb5 {[%clk 0:01:42]} 22. Bh3 {[%clk 0:02:19]}  Ke7 {[%clk 0:01:34]} 23. Rhd2 {[%clk 0:02:18]}  Rhc8 {[%clk 0:01:24]} 24. Kf2 {[%clk 0:02:14]}  Rc4 {[%clk 0:01:19]} 25. Ke3 {[%clk 0:02:14]}  Bd7 {[%clk 0:01:15]} 26. Bf1 {[%clk 0:02:11]}  R4c5 {[%clk 0:00:49]} 27. a3 {[%clk 0:02:09]}  Bb5 {[%clk 0:00:46]} 28. Bh3 {[%clk 0:02:05]}  Bd7 {[%clk 0:00:46]} 29. Rg2 {[%clk 0:01:59]}  Rc4 {[%clk 0:00:44]} 30. Rgd2 {[%clk 0:01:59]}  b5 {[%clk 0:00:43]} 31. Bf1 {[%clk 0:01:56]}  R4c5 {[%clk 0:00:41]} 32. Bd3 {[%clk 0:01:53]}  a5 {[%clk 0:00:39]} 33. Bb1 {[%clk 0:01:53]}  Rc4 {[%clk 0:00:35]} 34. Ba2 {[%clk 0:01:52]}  R4c5 {[%clk 0:00:23]} 35. Rf2 {[%clk 0:01:52]}  Rb8 {[%clk 0:00:22]} 36. f5 {[%clk 0:01:48]}  b4 {[%clk 0:00:22]} 37. axb4 {[%clk 0:01:47]}  axb4 {[%clk 0:00:22]} 38. cxb4 {[%clk 0:01:47]}  Rcb5 {[%clk 0:00:22]} 39. Rff4 {[%clk 0:01:45]}  Ra8 {[%clk 0:00:20]} 40. Bb1 {[%clk 0:01:40]}  Ra1 {[%clk 0:00:20]} 41. Bd3 {[%clk 0:01:40]}  Rb6 {[%clk 0:00:20]} 42. b5 {[%clk 0:01:35]}  Bxb5 {[%clk 0:00:13]} 43. Rb4 {[%clk 0:01:34]}  Ra5 {[%clk 0:00:11]} 44. fxe6 {[%clk 0:01:32]}  fxe6 {[%clk 0:00:09]} 45. Bg6 {[%clk 0:01:27]}  Kd7 {[%clk 0:00:06]} 46. Rf7+ {[%clk 0:01:26]}  Kc6 {[%clk 0:00:07]} 47. Rxg7 {[%clk 0:01:26]}  Ra1 {[%clk 0:00:03]} 48. Be8+ {[%clk 0:01:26]}  Kc5 {[%clk 0:00:03]} 49. Rxb5+ {[%clk 0:01:20]}  Rxb5 {[%clk 0:00:04]} 50. Bxb5 {[%clk 0:01:18]}  Kxb5 {[%clk 0:00:04]} 51. Rg6 {[%clk 0:01:19]}  Re1+ {[%clk 0:00:03]} 52. Kf4 {[%clk 0:01:18]}  Re4+ {[%clk 0:00:04]} 53. Kf3 {[%clk 0:01:17]}  Rxe5 {[%clk 0:00:03]} 54. Rxh6 {[%clk 0:01:18]}  Kc4 {[%clk 0:00:03]} 55. Rg6 {[%clk 0:01:17]}  Re1 {[%clk 0:00:03]} 56. h6 {[%clk 0:01:17]}  e5 {[%clk 0:00:03]} 57. g5 {[%clk 0:01:13]}  Rh1 {[%clk 0:00:03]} 58. Kg2 {[%clk 0:01:08]}  Rh5 {[%clk 0:00:03]} 59. Kg3 {[%clk 0:01:08]}  e4 {[%clk 0:00:04]} 60. Kg4 {[%clk 0:01:07]}  Rh1 {[%clk 0:00:04]} 61. Re6 {[%clk 0:01:08]}  Kd3 {[%clk 0:00:04]} 62. Kf5 {[%clk 0:01:07]}  e3 {[%clk 0:00:05]} 63. b4 {[%clk 0:01:02]}  e2 {[%clk 0:00:05]} 64. b5 {[%clk 0:01:03]}  e1=Q {[%clk 0:00:04]} 65. Rxe1 {[%clk 0:01:03]}  Rxe1 {[%clk 0:00:04]} 66. h7 {[%clk 0:01:03]}  Rh1 {[%clk 0:00:05]} 67. g6 {[%clk 0:01:03]}  Kc4 {[%clk 0:00:02]} 68. b6 {[%clk 0:01:04]}  d4 {[%clk 0:00:02]} 69. g7 {[%clk 0:01:04]}  Rf1+ {[%clk 0:00:01]} 70. Ke4 {[%clk 0:01:02]}  Re1+ {[%clk 0:00:02]} 71. Kf3 {[%clk 0:01:02]}  d3 {[%clk 0:00:02]} 72. g8=Q+ {[%clk 0:01:02]}  Kc3 {[%clk 0:00:03]} 73. h8=Q+ {[%clk 0:01:02]}  Kd2 {[%clk 0:00:03]} 74. Qa2+ {[%clk 0:00:58]} 1-0


[Site "https://www.chess.com"]

[Event "Titled Tuesday Blitz February 28 Early 2023"]
[White "Guliev, Logman"]
[Black "Skvortsov, Andrei"]
[WhiteFideId "13400061"]
[BlackFideId "24108600"]
[WhiteElo "2161"]
[BlackElo "2259"]
[Result "1-0"]
[Round "05"]
[TimeControl "180+2"]
[Date "2023.02.28"]
[WhiteClock "0:00:06"]
[BlackClock "0:00:23"]

1. e4 {[%clk 0:02:59]}  d5 {[%clk 0:02:56]} 2. exd5 {[%clk 0:02:59]}  Qxd5 {[%clk 0:02:57]} 3. Nc3 {[%clk 0:02:57]}  Qe5+ {[%clk 0:02:58]} 4. Be2 {[%clk 0:02:55]}  Bg4 {[%clk 0:02:57]} 5. h3 {[%clk 0:02:50]}  Bxe2 {[%clk 0:02:57]} 6. Ngxe2 {[%clk 0:02:50]}  Nf6 {[%clk 0:02:48]} 7. O-O {[%clk 0:02:50]}  Nc6 {[%clk 0:02:41]} 8. d4 {[%clk 0:02:47]}  Qa5 {[%clk 0:02:33]} 9. d5 {[%clk 0:02:42]}  O-O-O {[%clk 0:02:18]} 10. dxc6 {[%clk 0:02:34]}  Rxd1 {[%clk 0:02:17]} 11. cxb7+ {[%clk 0:02:35]}  Kxb7 {[%clk 0:02:15]} 12. Rxd1 {[%clk 0:02:35]}  e6 {[%clk 0:02:14]} 13. Be3 {[%clk 0:02:30]}  Bc5 {[%clk 0:02:01]} 14. Rd3 {[%clk 0:02:00]}  Bxe3 {[%clk 0:01:59]} 15. Rxe3 {[%clk 0:02:00]}  Rd8 {[%clk 0:01:58]} 16. a3 {[%clk 0:01:58]}  Qf5 {[%clk 0:01:54]} 17. Rc1 {[%clk 0:01:42]}  Rd2 {[%clk 0:01:52]} 18. Rf3 {[%clk 0:01:40]}  Qg6 {[%clk 0:01:39]} 19. Nf4 {[%clk 0:01:29]}  Qh6 {[%clk 0:01:31]} 20. Na4 {[%clk 0:01:14]}  Ne4 {[%clk 0:01:27]} 21. Re1 {[%clk 0:01:08]}  f5 {[%clk 0:00:52]} 22. Rb3+ {[%clk 0:00:18]}  Kc8 {[%clk 0:00:51]} 23. g3 {[%clk 0:00:17]}  g5 {[%clk 0:00:31]} 24. Nd3 {[%clk 0:00:06]}  Qxh3 {[%clk 0:00:29]} 25. Nac5 {[%clk 0:00:06]}  Rxf2 {[%clk 0:00:26]} 26. Nxf2 {[%clk 0:00:03]}  Nxc5 {[%clk 0:00:20]} 27. Nxh3 {[%clk 0:00:03]}  Nxb3 {[%clk 0:00:20]} 28. cxb3 {[%clk 0:00:03]}  h6 {[%clk 0:00:21]} 29. Rd1 {[%clk 0:00:03]}  g4 {[%clk 0:00:22]} 30. Nf2 {[%clk 0:00:04]}  h5 {[%clk 0:00:22]} 31. Nd3 {[%clk 0:00:03]}  c6 {[%clk 0:00:22]} 32. Nf4 {[%clk 0:00:04]}  Kc7 {[%clk 0:00:23]} 33. Nxe6+ {[%clk 0:00:04]}  Kb6 {[%clk 0:00:23]} 34. Ng7 {[%clk 0:00:05]}  h4 {[%clk 0:00:23]} 35. Nxf5 {[%clk 0:00:06]}  hxg3 {[%clk 0:00:23]} 36. Nxg3 {[%clk 0:00:06]} 1-0


[Site "https://www.chess.com"]